Cogmind - Beta 16.1 @@@ ROGUE MODE // 2026.06.18 @ 02:40:11 Player: FL-IST Result: Destroyed by DAS Turret with DAS Cannon Performance ------------- Evolutions (1) 500 Regions Visited (5) 1000 Robots Destroyed (87) 435 Value Destroyed (1547) 1547 Prototype IDs (2) 40 Alien Tech Used (0) 0 Bonus (-221) -221 TOTAL SCORE: 3301 Bonus ------- Follower Combat Kills 93 Friendly Fire -314 Cogmind --------- Core Integrity 0/400 Matter 224/300 Energy 93/100 System Corruption 0% Temperature Cool (0) Movement Walking (180) Ox1 Location -9/Exiles Parts ------- > --- POWER (1) -------- (None) > --- PROPULSION (3) --- VSS Leg > --- UTILITY (3) ------ Large Storage Unit > --- WEAPON (2) ------- (None) > --- INVENTORY (15) --- Light Angular Momentum Engine Hover Unit Hover Unit Improved Heat Sink Medium Storage Unit Beam Cannon Beam Cannon Beam Cannon Light Assault Rifle Mini Grenade Launcher Peak State ------------ > --- POWER ------------ Nuclear Core > --- PROPULSION ------- VSS Leg VSS Leg VSS Leg > --- UTILITY ---------- Improved Heat Sink Large Storage Unit Hardened Light Armor Plating > --- WEAPON ----------- Beamcaster Particle Cannon > --- INVENTORY -------- Light Angular Momentum Engine Hover Unit Hover Unit Medium Storage Unit Beam Cannon Mini Grenade Launcher [Rating: 26] Favorites ----------- Power Nuclear Core Engine Light Ion Engine Power Core Nuclear Core Propulsion Light Treads Treads Light Treads Leg VSS Leg Wheel Compact Wheel Utility Large Storage Unit Device Seismic Detector Storage Large Storage Unit Protection Hardened Light Armor Plating Weapon Beam Cannon Energy Gun Beamcaster Energy Cannon Beam Cannon Ballistic Gun Assault Rifle Launcher Mini Grenade Launcher Build | -11 -10 -10 -9 -9 -9 ------- Run | Yrd Mat Min Mat Min Exi Slots Evolved 2 | . . . 2 . . Power . | . . . . . . Propulsion 1 | . . . 1 . . Utility 1 | . . . 1 . . Weapon . | . . . . . . Parts Attached 51 | 7 11 1 23 8 1 Power 9 | 1 2 1 5 . . Engine 6 | 1 1 1 3 . . Core 3 | . 1 . 2 . . Reactor . | . . . . . . Propulsion 16 | 2 3 . 7 3 1 Treads 11 | 1 3 . 7 . . Leg 4 | . . . . 3 1 Wheel 1 | 1 . . . . . Hover . | . . . . . . Flight . | . . . . . . Utility 12 | 2 2 . 5 3 . Device 4 | 1 . . 1 2 . Storage 3 | 1 2 . . . . Processor . | . . . . . . Hackware . | . . . . . . Protection 5 | . . . 4 1 . Artifact . | . . . . . . Weapon 14 | 2 4 . 6 2 . Energy Gun 2 | . . . 2 . . Energy Cannon 9 | . 4 . 4 1 . Ballistic Gun 2 | 2 . . . . . Ballistic Cannon . | . . . . . . Launcher 1 | . . . . 1 . Special Weapon . | . . . . . . Impact Weapon . | . . . . . . Slashing Weapon . | . . . . . . Piercing Weapon . | . . . . . . Special Melee Weapon . | . . . . . . Unidentified Prototypes 2 | . . . 2 . . Parts Lost 12 | . . . . 4 8 Power 1 | . . . . . 1 Propulsion 5 | . . . . 2 3 Utility 4 | . . . . 2 2 Weapon 2 | . . . . . 2 Highest Loss Streak 7 | . . . . 4 7 To Critical Strikes 2 | . . . . 2 . Average Backups 12 | 1 12 15 14 7 10 Power . | . . . . . 1 Propulsion 3 | . 2 3 4 2 2 Utility 4 | . 5 7 5 1 2 Weapon 4 | . 4 5 4 2 5 Tool/Special . | . . . . . . Unused Backups 12 | . 3 . 4 . 5 Power 1 | . 1 . . . . Propulsion 3 | . . . 1 . 2 Utility 5 | . 2 . 3 . . Weapon 3 | . . . . . 3 Tool/Special . | . . . . . . Average Slot Usage (%) 98 | . 99 100 98 98 87 Engine 5 | . 4 14 3 . . Core 7 | . 9 . 7 11 10 Treads 21 | . 16 28 32 4 . Leg 6 | . . . . 26 32 Wheel 2 | . 11 . . . . Device 12 | . 14 14 11 11 10 Storage 12 | . 14 14 11 10 11 Protection 5 | . . . 11 11 1 Energy Gun 5 | . . . 7 10 10 Energy Cannon 18 | . 24 28 14 10 9 Peak Build Rating 26 | 7 10 9 20 26 25 Average Rating 15 | 5 9 9 17 24 22 On Entrance 11 | . 7 9 9 20 25 Avg Prop Armor Cover (%) 7 | 3 7 . . 9 . Naked Turns . | . . . . . . Heaviest Build 44 | 14 32 30 44 44 42 Greatest Support 60 | 20 40 40 60 60 36 Greatest Overweight (x) 3 | . 1 . . 3 2 Average Overweight (x) . | . . . . . . Largest Inventory Capacity 15 | 8 15 15 15 15 15 Average Capacity 14 | 7 14 15 15 14 15 Most Carried 15 | 3 15 15 15 15 11 Average Carried 12 | 1 13 15 14 7 10 Final Capacity 15 | 8 15 15 15 15 15 Final Carried 15 | 3 15 15 15 11 10 Class Distribution -------------------- 65% | Mutant 34% | Scavenger-Mutant Dominant Class ---------------- Mutant | -10/Materials Mutant | -10/Mines Scavenger-Mutant | -9/Materials Mutant | -9/Mines Mutant | -9/Exiles Resources | -11 -10 -10 -9 -9 -9 ----------- Run | Yrd Mat Min Mat Min Exi Matter Collected 939 | 292 184 10 304 145 4 Remotely . | . . . . . . Salvage Created 3315 | 157 987 286 1462 403 20 Parts 198 | 16 61 20 84 17 . Haulers Intercepted 7 | . 2 . 5 . . Recyclers Shooed 6 | 1 . 1 2 2 . Parts Field Recycled . | . . . . . . Retrieved Matter . | . . . . . . Parts Self-Destructed . | . . . . . . Prevented . | . . . . . . Parts Restored . | . . . . . . Kills | -11 -10 -10 -9 -9 -9 ------- Run | Yrd Mat Min Mat Min Exi Combat Hostiles Destroyed 52 | . 13 6 22 4 7 Melee 1 | . . . . 1 . Guns 11 | . . . 9 2 . Cannons 31 | . 13 6 12 . . AOE 8 | . . . . 1 7 Classes Destroyed 12 | 2 7 . 2 . 1 Worker 7 | . 2 1 3 1 . Builder 3 | . 1 1 1 . . Tunneler 4 | 4 . . . . . Hauler 7 | . 2 . 5 . . Recycler 12 | 1 4 1 1 5 . Mechanic 2 | . 1 . 1 . . Watcher 6 | . 3 . 3 . . Swarmer 17 | . 3 6 5 3 . Grunt 18 | . 10 . 8 . . Brawler 2 | . . . 2 . . Sentry 7 | . . . 7 . . Assembled 7 | . . . . . 7 Thug 1 | . . 1 . . . Best Kill Streak 7 | 5 3 4 5 3 7 Combat Bots Only 7 | . 3 3 5 3 7 Max Kills in Single Turn 2 | 1 2 1 1 2 2 Gunslinging . | . . . . . . Exploded 2 | . . . . 1 2 Melee 1 | . . . . 1 . Uniques/NPCs Destroyed 1 | . . . . 1 . 8R-AWN (-9/Mines) Combat | -11 -10 -10 -9 -9 -9 -------- Run | Yrd Mat Min Mat Min Exi Hostile Shots Fired 209 | . 29 22 70 51 37 Missed 45 | . 8 3 18 7 9 Hits 164 | . 21 19 52 44 28 Melee 1 | . . . 1 . . Projectile 163 | . 21 19 51 44 28 AOE 2 | . . . . 2 . Critical Strikes 25 | . 2 . 1 20 2 Damage Taken 2792 | . 256 149 766 732 889 Core 557 | . 83 29 75 23 347 Absorbed by Shields . | . . . . . . Regen/Repaired (Parts) 281 | . . . 281 . . Core Remaining (%) 77 | 100 . 55 . . . Volleys Fired 207 | 13 44 21 81 39 9 Largest 2 | 2 2 2 2 2 1 Hottest 143 | 40 120 120 135 143 30 Shots Fired 405 | 26 88 42 162 78 9 Gun 115 | 26 2 . 49 38 . Cannon 279 | . 86 42 113 38 . Launcher 11 | . . . . 2 9 Special . | . . . . . . Kinetic 28 | 26 2 . . . . Thermal 366 | . 86 42 162 76 . Explosive 11 | . . . . 2 9 Electromagnetic . | . . . . . . Robot Hit Streak 12 | 11 12 10 11 9 . Robot Miss Streak 4 | 2 2 4 4 4 . Penetration Max . | . . . . . . Secondary Targets . | . . . . . . Shots Hit Robots 243 | 16 55 22 96 54 . Core Hits 113 | 8 27 11 41 16 10 Critical Kills 1 | 1 . . . . . Critical Parts Destroyed . | . . . . . . Critical Strikes 4 | 1 . . 1 2 . Burn 3 | . . . 1 2 . Destroy 1 | 1 . . . . . Melee Attacks . | . . . . . . Impact . | . . . . . . Slashing . | . . . . . . Piercing . | . . . . . . Sneak Attacks . | . . . . . . Combat Hostiles . | . . . . . . Follow-up Attacks . | . . . . . . Damage Inflicted 5183 | 186 984 410 1844 1256 503 Guns 1528 | 186 19 . 723 600 . Cannons 3011 | . 958 397 1121 535 . Explosions 637 | . . 13 . 121 503 Melee . | . . . . . . Ramming 7 | . 7 . . . . Kinetic 205 | 186 19 . . . . Thermal 4347 | . 958 410 1844 1135 . Explosive 624 | . . . . 121 503 Electromagnetic . | . . . . . . Impact . | . . . . . . Slashing . | . . . . . . Piercing . | . . . . . . Highest Corruption . | . . . . . . Average Corruption . | . . . . . . Corruption Purged . | . . . . . . Corruption Blocked . | . . . . . . Overload Shots . | . . . . . . Overflow Damage 29 | . 12 . . 2 15 Projectiles 14 | . 12 . . 2 . Explosions 15 | . . . . . 15 Melee . | . . . . . . Knockbacks . | . . . . . . Impact . | . . . . . . Kinetic . | . . . . . . Secondary . | . . . . . . Self-Inflicted Damage . | . . . . . . Shots . | . . . . . . Rammed 2 | . 1 . . 1 . Targets Rammed 3 | . 1 . . 2 . Kicked . | . . . . . . Crushed 1 | . . . . 1 . Highest Temperature 529 | . 340 360 529 371 9 Average Temperature 135 | . 100 122 145 156 6 Received Heat Transfer 432 | . 165 . 267 . . Effects 15 | . 3 1 9 2 . Shutdowns 3 | . . . 2 1 . Energy Bleed 6 | . 1 1 3 1 . Interference 3 | . 1 . 2 . . Matter Decay 1 | . . . 1 . . Short Circuit 2 | . 1 . 1 . . Siege Activations . | . . . . . . Martial Activations . | . . . . . . Shielding Activations . | . . . . . . Robots Disrupted . | . . . . . . Combat Hostiles . | . . . . . . Robots Corrupted . | . . . . . . Combat Hostiles . | . . . . . . Parts Fried . | . . . . . . Impact Corruptions . | . . . . . . Robots Melted 1 | . . . 1 . . Combat Hostiles 1 | . . . 1 . . Parts Melted 14 | . 4 2 6 2 . Heat Transferred 7691 | . 1998 864 3663 1166 . Parts Sabotaged . | . . . . . . Parts Stolen . | . . . . . . Parts Stripped . | . . . . . . Power Chain Reactions . | . . . . . . Alert | -11 -10 -10 -9 -9 -9 ------- Run | Yrd Mat Min Mat Min Exi Maximum Alert Level 1 | . . . 1 . . Low Security (%) 81 | 100 100 100 50 100 . Level 1 18 | . . . 49 . . Level 2 . | . . . . . . Level 3 . | . . . . . . Level 4 . | . . . . . . Level 5 . | . . . . . . High Security . | . . . . . . Max Security . | . . . . . . Peak Influence 338 | 15 159 133 338 197 . Initial 111 | . . 49 . 111 . Average 93 | 2 63 39 178 28 . Influence Increases 1886 | 25 508 299 938 116 . Destroy 0b10 Robot/C 1020 | . 260 180 520 60 . Destroy 0b10 Robot/NC 210 | 25 65 15 75 30 . Destroy Leader 248 | . 60 30 148 10 . Allied During Kill 30 | . . 8 22 . . Successful Hack 109 | . 46 . 63 . . Select Force Hacks 90 | . 30 . 60 . . Disable Machine 120 | . 45 45 30 . . Destroy Structure 44 | . 2 21 5 16 . Partial Spotted 15 | . . . 15 . . Influence Decreases 1886 | 25 380 427 651 403 . Entered New Map 255 | . . 79 . 176 . Time Decay 1551 | 25 380 348 611 187 . Lost Part 40 | . . . . 40 . Lost Ally 40 | . . . 40 . . Squads Dispatched 7 | . 4 . 3 . . Investigation 7 | . 4 . 3 . . Extermination . | . . . . . . Reinforcement . | . . . . . . Assault . | . . . . . . Garrison . | . . . . . . Intercept . | . . . . . . Searches Triggered . | . . . . . . Construction Impeded . | . . . . . . Haulers Reinforced . | . . . . . . Active Scanning Responses . | . . . . . . Cargo Convoy Interrupts . | . . . . . . Stealth | -11 -10 -10 -9 -9 -9 --------- Run | Yrd Mat Min Mat Min Exi Distress Signals 5 | . 2 . 3 . . Communications Jammed . | . . . . . . Distress Signals . | . . . . . . Times Spotted 78 | . 18 9 37 6 8 Peak Tracking Total 8 | . 3 3 5 3 8 Tactical Retreats . | . . . . . . Traps | -11 -10 -10 -9 -9 -9 ------- Run | Yrd Mat Min Mat Min Exi Traps Triggered 4 | . 4 . . . . Indirectly . | . . . . . . Trap Hack Attempts . | . . . . . . Triggered . | . . . . . . Disarmed 8 | . . . 8 . . Reprogrammed . | . . . . . . Reused . | . . . . . . Traps Extracted . | . . . . . . Installed . | . . . . . . Triggered . | . . . . . . Machines | -11 -10 -10 -9 -9 -9 ---------- Run | Yrd Mat Min Mat Min Exi Machines Disabled 9 | . 3 3 2 . 1 Max in Single Turn 3 | . 1 3 1 . 1 Machines Repaired . | . . . . . . Machines Dismantled . | . . . . . . Machines Sabotaged . | . . . . . . Overloaded Fab Kills . | . . . . . . Hacking | -11 -10 -10 -9 -9 -9 --------- Run | Yrd Mat Min Mat Min Exi Machines Accessed 27 | . 11 . 16 . . Terminals 19 | . 8 . 11 . . Fabricators . | . . . . . . Repair Stations 3 | . 1 . 2 . . Recycling Units 4 | . 2 . 2 . . Scanalyzers 1 | . . . 1 . . Garrison Access . | . . . . . . Total Hacks 85 | . 33 . 52 . . Successful 52 | . 17 . 35 . . Failed 32 | . 16 . 16 . . Catastrophic 2 | . 2 . . . . Database Lockouts 1 | . . . 1 . . Manual 57 | . 27 . 30 . . Terminals 60 | . 25 . 35 . . Fabricators . | . . . . . . Repair Stations 11 | . 3 . 8 . . Recycling Units 10 | . 5 . 5 . . Scanalyzers 4 | . . . 4 . . Garrison Access . | . . . . . . Terminal Hacks 7 | . 2 . 5 . . Robot Analysis 2 | . 2 . . . . Branch Access Points 1 | . . . 1 . . Locate Traps 2 | . . . 2 . . Disarm Traps 2 | . . . 2 . . Fabricator Hacks . | . . . . . . Repair Station Hacks 7 | . 1 . 6 . . Scan Component 4 | . 1 . 3 . . Repair 3 | . . . 3 . . Recycling Unit Hacks 2 | . 1 . 1 . . Retrieve Components 2 | . 1 . 1 . . Scanalyzer 3 | . . . 3 . . Insert Component 1 | . . . 1 . . Analyze 1 | . . . 1 . . Retrieve Study 1 | . . . 1 . . Garrison Access Hacks . | . . . . . . Unauthorized Hacks 33 | . 13 . 20 . . Terminals 30 | . 12 . 18 . . Track 1 | . . . 1 . . Botnet 12 | . 5 . 7 . . Skim 17 | . 7 . 10 . . Fabricators . | . . . . . . Repair Stations . | . . . . . . Recycling Units 3 | . 1 . 2 . . Tunnel 3 | . 1 . 2 . . Scanalyzers . | . . . . . . Garrison Access . | . . . . . . Data Cores Recovered . | . . . . . . Used . | . . . . . . Hacking Detections 22 | . 10 . 12 . . Full Trace Events 4 | . 3 . 1 . . Feedback Events . | . . . . . . Feedback Blocked . | . . . . . . Robot Schematics Acquired . | . . . . . . Robots Built . | . . . . . . Authchips . | . . . . . . Time . | . . . . . . Total Robot Build Rating . | . . . . . . Part Schematics Acquired 1 | . . . 1 . . Parts Built . | . . . . . . Authchips . | . . . . . . Time . | . . . . . . Total Part Build Rating . | . . . . . . Part Studies Acquired 1 | . . . 1 . . Parts Repaired 3 | . . . 3 . . Time 102 | . . . 102 . . Parts Recycled . | . . . . . . Recycled Matter . | . . . . . . Retrieved Matter . | . . . . . . Retrieved Components 18 | . 9 . 9 . . Parts Scanalyzed 1 | . . . 1 . . Part Schematics Acquired 1 | . . . 1 . . Parts Damaged . | . . . . . . Bothacking | -11 -10 -10 -9 -9 -9 ------------ Run | Yrd Mat Min Mat Min Exi Used RIF Installer . | . . . . . . Robots Hacked . | . . . . . . Non-combat . | . . . . . . Combat . | . . . . . . Robot Hacks Applied . | . . . . . . Relay Couplers Released . | . . . . . . Fabnet Peak Effective % . | . . . . . . Robots Rewired . | . . . . . . Allies Hacked . | . . . . . . Hacks Repelled . | . . . . . . Allies | -11 -10 -10 -9 -9 -9 -------- Run | Yrd Mat Min Mat Min Exi Total Allies 3 | . . 3 . . . Largest Group 2 | . . 2 2 . . Highest-Rated Group 48 | . . 48 48 . . Highest-Rated Ally 31 | . . 31 31 . . Total Orders . | . . . . . . Ally Attacks 20 | . . 6 14 . . Total Damage 312 | . . 62 250 . . Kills 8 | . . 3 5 . . Allies Corrupted . | . . . . . . Allies Melted . | . . . . . . Intel | -11 -10 -10 -9 -9 -9 ------- Run | Yrd Mat Min Mat Min Exi Active Infowar (turns) 5144 | 35 1021 1197 2221 348 322 Seismic 5144 | 35 1021 1197 2221 348 322 Robot Analysis Total 2 | . 2 . . . . Derelict Logs Recovered 3 | . . 1 . 2 . Drone Launches . | . . . . . . Drone Recoveries . | . . . . . . Exploration | -11 -10 -10 -9 -9 -9 ------------- Run | Yrd Mat Min Mat Min Exi Turns Passed 6447 | 112 1447 1197 2250 1107 334 Spaces Moved 3157 | 52 726 676 1006 518 179 Core 11 | 11 . . . . . Treads 2220 | 28 460 676 1006 50 . Legs 647 | . . . . 468 179 Wheels 279 | 13 266 . . . . Hover . | . . . . . . Flight . | . . . . . . Fastest Speed 50 | 50 115 160 160 160 90 Average Speed 165 | 121 166 160 160 180 172 Slowest Speed 360 | 160 240 160 160 360 270 Overloaded Moves . | . . . . . . Propulsion Burnouts . | . . . . . . Robots Hopped . | . . . . . . Potential Cave-ins . | . . . . . . Cave-ins Triggered . | . . . . . . Exploration Rate (%) 71 | 4 97 98 86 94 52 Regions Visited 5 Branch Regions 3 Pre-discovered Areas 10 | . 2 1 6 1 . Known Exits Taken 2 | . . 1 1 . . Unknown Exits Taken 3 | 1 1 . . 1 . Scrap Searched 3 | . . 2 . 1 . Spaces Dug . | . . . . . . Terrain Destroyed 74 | . . 22 . 24 28 Melee . | . . . . . . Projectile . | . . . . . . AOE 74 | . . 22 . 24 28 Terrain Rammed . | . . . . . . Walls Destroyed . | . . . . . . Machines Disabled . | . . . . . . Actions | -11 -10 -10 -9 -9 -9 --------- Run | Yrd Mat Min Mat Min Exi Total 3984 | 74 873 750 1486 607 194 Wait 483 | . 58 52 345 25 3 Move 3152 | 51 725 675 1005 517 179 Hop . | . . . . . . Pick Up 38 | 3 18 . 9 8 . Fast Attach 17 | 7 5 . 2 3 . Attach 8 | . 1 . 3 3 1 Detach . | . . . . . . Swap 43 | . 9 1 23 8 2 Drop 33 | . 12 1 18 2 . Fire 207 | 13 44 21 81 39 9 Melee . | . . . . . . Ram . | . . . . . . Kick . | . . . . . . Crush 3 | . 1 . . 2 . Escape Stasis . | . . . . . . Rewire . | . . . . . . Trap . | . . . . . . Miscellaneous . | . . . . . . Route ------- -11/Scrapyard -10/Materials (discovered 4 exits: *Mat x3 / [*Min]) -10/Mines (discovered 2 exits: *Mat x2) -9/Materials (discovered 4 exits: *Mat x3 / *Min) -9/Mines (discovered 3 exits: *Mat x2 / [*Exi]) -9/Exiles (discovered 1 exit: [*Min]) History --------- Turn | Location | Event 33 | -11/Scrapyard | Discovered new exit (range 15) 113 | -11/Scrapyard | Entered Materials 284 | -10/Materials | Discovered new exit (range 11) 328 | -10/Materials | Build established: Mutant 502 | -10/Materials | Discovered new exit (range 16) 1114 | -10/Materials | Discovered new exit (range 16) 1363 | -10/Materials | Discovered new exit (range 16) 1417 | -10/Materials | Learned 2 Storage zone layouts 1469 | -10/Materials | Loaded intel: 13 trap records 1511 | -10/Materials | Learned location of Subcaves (-10) 1560 | -10/Materials | Entered Mines 1561 | -10/Mines | Identified exit to Materials 1583 | -10/Mines | Met a Derelict bent on vengeance 1786 | -10/Mines | Escorted by a lone wolf Derelict 1830 | -10/Mines | Learned location of Zion (-7) 2757 | -10/Mines | Entered Materials 2757 | -9/Materials | Accompanied by 2 allies 2757 | -9/Materials | Evolved 2 slots: Propulsion x1, Utility x1 2762 | -9/Materials | Led the pair of lost Derelicts to an unsafe place 2977 | -9/Materials | Discovered new exit (range 8) 3077 | -9/Materials | Repaired Lgt. Treads 3105 | -9/Materials | Repaired Lgt. Treads 3389 | -9/Materials | Build established: Scavenger-Mutant 3447 | -9/Materials | Learned 4 Recycling zone layouts 3523 | -9/Materials | Learned Storage emergency access door positions 3589 | -9/Materials | Identified exit to Materials 3646 | -9/Materials | Learned 2 Storage zone layouts 3663 | -9/Materials | Central database locked down 3806 | -9/Materials | Identified exit to Mines 3904 | -9/Materials | Learned Storage garrison access intel 4481 | -9/Materials | Learned Materials stockpile data 4560 | -9/Materials | Learned 4 Recycling zone layouts 4629 | -9/Materials | Learned Storage stockpile data 4687 | -9/Materials | Learned 2 Materials zone layouts 4760 | -9/Materials | Repaired Beamcaster 4777 | -9/Materials | Learned location of Mines (-9) 4826 | -9/Materials | Learned location of 2 exits from Materials 4885 | -9/Materials | Learned Storage emergency access door positions 5007 | -9/Materials | Entered Mines 5032 | -9/Mines | Assembled infested the area 5071 | -9/Mines | Met 8R-AWN 5099 | -9/Mines | Attacked by 8R-AWN 5175 | -9/Mines | Destroyed 8R-AWN 5195 | -9/Mines | Lost 4 parts (2n2u) 5381 | -9/Mines | Discovered exit to Materials (range 11) 5457 | -9/Mines | Build established: Mutant 5503 | -9/Mines | Discovered exit to Materials (range 5) 5532 | -9/Mines | Discovered new exit (range 5) 5558 | -9/Mines | Learned location of Storage (-8) 5696 | -9/Mines | Learned location of 1 exit from Materials 6114 | -9/Mines | Entered Exiles 6114 | -9/Exiles | Attacked by the Exiles 6173 | -9/Exiles | Discovered new exit (range 15) 6185 | -9/Exiles | Destroyed 7 combat bots 6431 | -9/Exiles | Core integrity fell below 50% 6443 | -9/Exiles | Core integrity fell below 20% 6448 | -9/Exiles | Destroyed by DAS Turret with DAS Cannon Last Messages --------------- 06145_ Destroyed Asb. Blade. 06145_ as-91225 destroyed. 06147_ as-17663 destroyed. 06153_ Hrd. Light Armor Plating destroyed. 06161_ as-25890 destroyed. 06164_ as-92172 destroyed. 06171_ The unstable cave ceiling collapses. 06173_ EXIT=FOUND 06177_ Machine disabled. 06192_ Rigged Fission Core explodes. 06426_ VSS Leg destroyed. 06428_ Nuclear Core destroyed. 06434_ VSS Leg destroyed. 06436_ Beamcaster destroyed. 06436_ Seismic Detector destroyed. 06438_ Machine disabled. 06442_ Particle Cannon destroyed. 06442_ VSS Leg destroyed. 06442_ Critical hit (Blast). 06447_ Acquired 4 matter. Map ----- +----------------------------------------------------+ | ????????????????????????" " " "" | | ??????????????????????? "" | | ??????????????????????? " | | ??????????????????????? | | ??????????????????????? | | ???????????????????????? | | ?????????????????????? ? """""" | | ??????????????????? ? ######""" | | ????????????????? ""#?????#####""" | | ??????????????? "?????????????##""" | | ?????????????? ""??????????????#"""" | | ?????????????? "?????????????##"" | | ????????????? ########??####"""" | | ????????????? ## ####""" | | ???????????? """" | | ????????????? % | | ????????????""" % | | ???????????# %% " | | ????????????" " "" " | | ????????????"""" %% ""## ##""" " " "" | | ????????????"" %""#### ######""" """ | | ???????????#" """"##??# #????###""""# | | ????????????""" % """#???# #???????##### | | ????????????# % ""##???! ???????????? | | ????????????#"" " "##???#" ??????????? | | ?????????????#""" @%##????#" "?????????? | | ???????????????"""" ##?????#!!""!"?????????? | | ???????????????## #??????########????????? | | ????????????????##### ##??????????????????????? | | ????????????????????## ????????????????????????? | | ?????????????????????# ????????????????????????? | | ?????????????????????# ????????????????????????? | | ?????????????????????# ????????????????????????? | | ?????????????????????# ????????????????????????? | | ?????????????????????# ????????????????????????? | | ?????????????????????# ?????????????????????????? | | ?????????????????????# ?????????????????????????? | | ?????????????????????# ?????????????????????????? | | ?????????????????????# ?????????????????????????? | | ?????????????????????# ??????????????????????????? | | ?????????????????????????????????????????????????? | | ?????????????????????????????????????????????????? | | ?????????????????????????????????????????????????? | | ?????????????????????????????????????????????????? | | ?????????????????????????????????????????????????? | | ?????????????????????????????????????????????????? | | ?????????????????????????????????????????????????? | | ?????????????????????????????????????????????????? | | ?????????????????????????????????????????????????? | | ?????????????????????????????????????????????????? | +----------------------------------------------------+ Best States ------------- Heat Dissipation 56 Energy Generation 18 Energy Capacity 280 Matter Stores 300 Matter Capacity 300 Sight Range 16 Terrain Scan Density 10 Armor Coverage 225 Evasion (%) 57 Recoil Reduction 3 Item Schematics ----------------- Hover Unit | -9/Materials | Scanalyzed Robot Schematics ------------------ None Fabricated ------------ Nothing Repaired ---------- Lgt. Treads | 4% | -9/Materials Lgt. Treads | 36% | -9/Materials Beamcaster | 35% | -9/Materials Studied --------- Hover Unit | -9/Materials | Hacked Alien Tech Used ----------------- None Achievements -------------- None Challenges ------------ None Game ------ Seed ContainmentSwordForcewell Manual? 0 Play Time 00:30:02 Cumulative 418.1 hours Start 2026.06.18 @ 02:10:43 End 2026.06.18 @ 02:40:11 Sessions 1 Manual Loads 0 Difficulty Rogue Special Mode None Game No. 318 Rogue 318 Adventurer 0 Explorer 0 Win Type - Total 27 Types 15/0/8/2/0/0/0/1/1/0 Lore% 89 Gallery% 81 Achievement% 71 Wizard Run 0 Options --------- Layout 1 ASCII 0 Keyboard 0 Movement Numpad Keybinds 0 Fullscreen 1 Font 32/SmallcapsGlow Map View 77x35 Zoom Use 0% Tactical HUD 1 Map Filters NONE Filters NONE Steam 1 RUN: ed22c348-d9db-4867-88a9-5f43728e7c50